bitfinex-derivatives/quotes_SOLF0:USTF0_20250712
["timestamp","ask_amount","ask_price","bid_price","bid_amount"]
[1752294882784,2.75,163.13,163.11,3.53]
[1752294883389,2.75,163.12,163.09,6.1287]
[1752294883585,2.75,163.12,163.07,6.87159953]
[1752294883784,2.75,163.12,163.06,6.87159953]
[1752294883984,2.75,163.09,163.07,3.53]
[1752294884386,2.75,163.1,163.07,6.1295]
[1752294884684,2.75,163.1,163.08,3.53]
[1752294885789,6.128,163.11,163.09,3.32]
[1752294886391,2.76,163.1,163.09,3.32]
[1752294886592,8.8884,163.1,163.09,3.32]
[1752294886988,8.8884,163.1,163.08,3.32]
[1752294887190,2.76,163.09,163.08,3.32]
[1752294887389,8.8888,163.09,163.08,3.32]
[1752294887591,6.1288,163.09,163.04,3.32]
[1752294887787,2.76,163.08,163.04,3.32]
[1752294888192,2.76,163.07,163.06,3.32]
[1752294889991,8.8895,163.07,163.06,3.32]
[1752294890397,6.1295,163.07,163.04,6.1305]
[1752294890595,2.76,163.06,163.04,6.1305]
[1752294890999,2.76,163.06,163.05,3.32]
[1752294893095,2.76,163.09,163.02,3.32]
[1752294893495,2.76,163.08,163.06,3.32]
[1752294893993,8.8892,163.08,163.06,3.32]
[1752294894500,2.76,163.07,163.05,6.13]
[1752294895007,2.76,163.07,163.06,3.32]
[1752294895197,8.8892,163.08,163.06,3.32]
[1752294895808,2.76,163.07,163.06,3.32]
[1752294899598,8.8892,163.08,163.06,3.32]
[1752294899900,6.1288,163.1,163.06,6.1296]
[1752294900106,2.76,163.1,163.07,3.32]
[1752294900309,2.76,163.12,163.07,3.32]
[1752294900505,2.76,163.15,163.1,3.32]
[1752294901098,2.76,163.14,163.11,6.1278]
[1752294901304,2.76,163.14,163.12,3.32]
[1752294901506,8.887,163.14,163.12,3.32]
[1752294902905,2.76,163.14,163.1,3.32]
[1752294903503,6.1276,163.13,163.1,3.32]
[1752294903703,2.76,163.12,163.1,3.32]
[1752294904105,6.1276,163.13,163.1,3.32]
[1752294904106,8.8876,163.13,163.1,3.32]
[1752294904408,2.76,163.12,163.11,3.32]
[1752294904596,6.1276,163.13,163.11,3.32]
[1752294904800,8.8876,163.13,163.11,3.32]
[1752294905000,2.76,163.13,163.11,3.32]
[1752294907204,6.1277,163.12,163.11,3.32]
[1752294907911,8.8874,163.13,163.11,3.32]
[1752294909008,532.14,163.16,163.11,3.32]
[1752294909203,529.38,163.16,163.11,3.32]
[1752294909401,2.76,163.15,163.11,3.32]
[1752294909911,2.76,163.14,163.12,3.32]
[1752294910215,2.76,163.15,163.07,3.32]
[1752294910708,6.127,163.14,163.07,3.32]
[1752294911817,8.8867,163.15,163.08,3.78561989]
[1752294912120,8.8867,163.15,163.09,3.32]
[1752294913116,8.8867,163.15,163.13,3.32]
[1752294913117,2.76,163.15,163.13,3.32]
[1752294913316,538.2663,163.16,163.13,3.32]
[1752294913713,538.2663,163.16,163.13,6.1272]
[1752294913917,2.76,163.15,163.08,3.78561989]
[1752294914314,2.76,163.15,163.12,6.1275]
[1752294914514,8.8868,163.15,163.13,3.32]
[1752294914713,2.77,163.15,163.13,3.32]
[1752294915118,6.1269,163.14,163.13,3.32]
[1752294915418,8.8969,163.14,163.13,3.32]
[1752294915618,2.77,163.14,163.1,6.1282]
[1752294915819,6.1274,163.13,163.12,3.48]
[1752294916113,8.8974,163.13,163.12,3.48]
[1752294916520,2.77,163.13,163.12,3.48]
[1752294916720,8.8971,163.14,163.12,3.48]
[1752294917222,182.7473,163.13,163.12,3.48]
[1752294917720,176.62,163.13,163.12,3.48]
[1752294919021,176.62,163.13,163.12,9.6077]
[1752294922822,176.62,163.13,163.12,3.48]
[1752294923221,179.39,163.13,163.12,3.48]
[1752294925121,176.62,163.13,163.12,3.48]
[1752294928726,176.62,163.13,163.12,9.6077]
[1752294930522,176.54,163.15,163.14,9.6068]
[1752294932230,176.54,163.15,163.14,3.48]
[1752294934432,176.54,163.15,163.14,9.6069]
[1752294936030,176.54,163.15,163.14,3.48]
[1752294936236,179.3,163.15,163.14,3.48]
[1752294936736,185.4265,163.15,163.14,3.48]
[1752294938937,179.3,163.15,163.14,3.48]
[1752294942040,179.3,163.15,163.07,6.87159953]
[1752294942240,2.76,163.14,163.09,3.48]
[1752294942542,2.76,163.13,163.11,6.1278]
[1752294942733,2.76,163.13,163.12,3.48]
[1752294942935,8.8871,163.14,163.12,3.48]
[1752294944136,8.8871,163.14,163.12,9.6077]
[1752294944439,8.8871,163.14,163.13,3.48]
[1752294945141,2.76,163.14,163.13,3.48]
[1752294945642,2.76,163.14,163.13,9.6073]
[1752294947245,185.4267,163.15,163.14,3.56]
[1752294948548,176.54,163.15,163.14,9.6869]
[1752294948745,176.54,163.15,163.14,3.56]
[1752294949143,179.3,163.15,163.14,3.56]
[1752294950949,185.4265,163.15,163.14,3.56]
[1752294951246,179.3,163.15,163.12,3.56]
[1752294951448,2.76,163.14,163.11,3.56]
[1752294951845,2.76,163.14,163.07,10.65868537]
[1752294951846,2.76,163.14,163.07,6.87159953]
[1752294952048,2.76,163.11,163.08,3.56]
[1752294952248,180.32708584,163.15,163.09,6.1286]
[1752294952549,2.76,163.12,163.1,3.56]
[1752294952948,2.76,163.11,163.1,3.56]
[1752294953143,2.76,163.11,163.09,6.1286]
[1752294953546,2.76,163.11,163.1,3.56]
[1752294959254,2.76,163.12,163.1,6.1283]
[1752294959554,2.76,163.12,163.11,3.56]
[1752294960256,8.8877,163.12,163.11,3.56]
[1752294960454,2.76,163.11,163.09,3.56]
[1752294960651,2.76,163.11,163.04,3.56]
[1752294960852,2.76,163.09,163.04,3.56]
[1752294961052,6.54922654,163.08,163.04,3.56]
[1752294961253,6.1298,163.07,163.04,6.1306]
[1752294961552,2.76,163.06,163.05,3.56]
[1752294961752,2.76,163.05,163.0,3.56]
[1752294961945,6.1299,163.06,163.0,3.56]
[1752294962146,3.78922654,163.08,163.0,3.56]
[1752294962351,2.76,163.07,163.05,3.56]
[1752294962851,8.8896,163.07,163.05,3.56]
[1752294963350,2.76,163.06,163.03,9.6909]
[1752294963854,2.76,163.06,163.03,6.1309]
[1752294964357,2.76,163.06,163.04,9.6906]
[1752294964555,3.78922654,163.06,162.97,10.66082607]
[1752294964753,2.76,163.05,162.98,3.56]
[1752294965146,6.1307,163.04,163.0,6.1318]
[1752294965445,2.76,163.03,163.01,3.56]
[1752294965658,2.76,163.03,163.01,6.1317]
[1752294965857,2.76,163.04,163.02,3.56]
[1752294966554,8.891,163.04,162.98,3.56]
[1752294967357,8.891,163.04,163.0,3.56]
[1752294968565,8.891,163.04,163.01,6.1317]
[1752294968750,8.891,163.04,163.02,3.56]
[1752294969355,8.891,163.04,163.03,3.56]
[1752294971060,2.76,163.04,163.03,3.56]
[1752294972165,8.8907,163.04,163.03,3.56]
[1752294973964,6.1304,163.05,163.03,3.56]
[1752294974866,2.77,163.05,163.03,3.56]
[1752294975459,8.9003,163.05,163.03,9.6909]
[1752294975762,8.9003,163.05,162.97,3.78922654]
[1752294975763,8.9003,163.05,163.04,3.49]
[1752294977565,2.77,163.05,163.04,3.49]
[1752294977863,8.9001,163.06,163.04,3.49]
[1752294978763,8.55695819,163.06,163.04,3.49]
[1752294979065,8.9003,163.05,163.04,3.49]
[1752294980564,2.77,163.04,163.03,3.49]
[1752294980866,8.9007,163.04,163.03,3.49]
[1752294981162,2.77,163.05,163.03,3.49]
[1752294982166,8.9006,163.05,163.03,3.49]
[1752294983568,6.1307,163.04,163.03,3.49]
[1752294988563,3.45,163.02,163.0,6.1321]
[1752294990670,3.45,163.02,163.01,3.49]
[1752294991771,3.45,163.02,163.0,3.49]
[1752294991975,3.45,163.01,162.97,3.49]
[1752294992369,3.45,162.99,162.98,3.49]
[1752294993073,6.1324,163.0,162.98,3.49]
[1752294993273,9.5824,163.0,162.98,3.49]
[1752294997575,3.45,162.99,162.98,3.49]
[1752294999672,3.45,162.98,162.89,5.91866244]
[1752294999877,5.87866244,162.94,162.9,3.49]
[1752295000078,9.5851,162.93,162.9,3.49]
[1752295000271,3.45,162.93,162.9,3.49]
[1752295000668,3.45,162.91,162.9,3.49]
[1752295001271,3.45,162.93,162.9,3.49]
[1752295001573,3.45,162.96,162.91,2.42974736]
[1752295001879,10.47706963,162.97,162.92,3.49]
[1752295002578,8.04732227,162.97,162.96,3.49]
[1752295003174,3.45,162.97,162.96,3.49]
[1752295003969,3.45,162.97,162.96,9.6237]
[1752295004172,3.45,162.97,162.96,3.49]
[1752295005576,3.45,162.97,162.96,9.6237]
[1752295005978,3.45,162.97,162.96,9.4537]
[1752295007476,3.43,162.98,162.97,6.1333]
[1752295007682,3.43,162.98,162.97,9.4533]
[1752295007884,3.43,162.98,162.97,3.32]
[1752295008378,179.75,163.0,162.97,3.32]
[1752295008778,179.75,163.0,162.98,6.1326]
[1752295008985,179.75,163.0,162.99,3.32]
[1752295009281,176.32,163.0,162.99,9.4526]
[1752295010079,179.75,163.0,162.99,3.32]
[1752295013281,176.32,163.0,162.99,9.4526]
[1752295013582,709.57,163.01,163.0,3.32]
[1752295013784,179.73,163.01,163.0,3.32]
[1752295014486,179.73,163.01,163.0,9.4522]
[1752295018185,176.3,163.01,163.0,9.4522]
[1752295021387,3.43,163.0,162.99,9.4524]
[1752295023390,179.73,163.01,162.99,6.1324]
[1752295023591,179.73,163.01,163.0,9.4522]
[1752295023790,176.3,163.01,163.0,9.4522]
[1752295024290,3.43,163.02,163.0,9.4522]
[1752295024495,3.43,163.02,163.01,3.32]
[1752295024891,3.43,163.02,163.01,9.4518]
[1752295026288,3.43,163.02,163.01,3.32]
[1752295028895,3.43,163.02,163.01,9.4518]
[1752295029094,3.43,163.02,163.01,3.32]
[1752295029401,3.43,163.02,162.99,6.1325]
[1752295029603,3.43,163.02,163.0,3.32]
[1752295029999,3.43,163.02,163.0,9.4521]
[1752295032305,3.43,163.01,163.0,3.32]
[1752295033101,3.43,163.01,163.0,9.4522]
[1752295034604,3.43,163.01,163.0,3.32]
[1752295035304,3.43,163.01,163.0,9.4522]
[1752295036910,3.55,163.0,162.96,3.48]
[1752295037508,3.55,162.98,162.97,3.48]
[1752295037907,3.55,162.98,162.97,9.6133]
[1752295039015,6.1322,163.0,162.97,6.1333]
[1752295039312,4.47699692,163.03,162.99,3.48]
[1752295039510,3.55,163.0,162.99,3.48]
[1752295039909,4.47699692,163.04,163.01,3.48]
[1752295040306,10.60789692,163.04,163.01,9.6116]
[1752295040510,3.55,163.03,163.02,3.48]
[1752295042816,9.681,163.03,163.0,6.132]
[1752295043012,9.681,163.03,163.01,3.48]
[1752295043013,3.55,163.02,163.01,3.48]
[1752295044007,3.55,163.02,163.01,9.6118]
[1752295044210,3.55,163.02,163.01,3.48]
[1752295047114,9.6814,163.02,163.01,3.48]
[1752295047415,3.55,163.01,162.95,3.79279034]
[1752295047614,6.1318,163.01,162.95,3.79279034]
[1752295047816,3.55,163.0,162.99,3.48]
[1752295048206,6.1324,163.0,162.96,3.48]
[1752295048412,3.55,162.99,162.91,6.86343877]
[1752295048615,3.55,162.99,162.97,3.48]
[1752295048816,9.6828,162.99,162.97,3.48]
[1752295049014,3.55,162.98,162.97,3.48]
[1752295050917,9.6829,162.98,162.97,3.48]
[1752295053920,3.55,162.97,162.96,3.48]
[1752295054314,9.6833,162.97,162.95,3.48]
[1752295054510,3.55,162.96,162.95,3.48]
[1752295055311,6.1337,162.96,162.94,3.48]
[1752295055512,3.55,162.95,162.93,6.1347]
[1752295055920,3.55,162.95,162.94,3.48]
[1752295056123,8.91858574,163.01,162.94,3.48]
[1752295056323,3.55,163.0,162.94,3.48]
[1752295057925,3.55,162.97,162.96,3.48]
[1752295061124,3.55,162.98,162.96,3.48]
[1752295061322,3.55,163.02,162.96,3.48]
[1752295061921,6.1319,163.01,162.98,6.1328]
[1752295062226,3.55,163.0,162.99,3.48]
[1752295063315,9.6822,163.0,162.99,3.48]
[1752295065830,3.46,163.02,162.97,3.52]
[1752295066624,3.46,163.02,163.0,6.1319]
[1752295066819,3.46,163.02,163.01,3.52]
[1752295067122,3.46,163.02,163.01,9.6518]
[1752295067830,3.46,163.02,163.01,3.52]
[1752295068428,3.46,163.02,163.01,9.6518]
[1752295069128,3.46,163.02,163.01,3.52]
[1752295071624,9.5914,163.02,163.01,3.52]
[1752295071927,3.46,163.02,162.97,3.52]
[1752295073229,6.1322,163.0,162.98,6.1329]
[1752295073429,3.46,162.99,162.98,3.52]
[1752295073931,9.5925,162.99,162.98,3.52]
[1752295081136,6.1332,162.98,162.95,6.134]
[1752295081332,3.79432334,163.01,162.96,3.52]
[1752295081635,3.46,163.0,162.96,3.52]
[1752295082425,6.1336,162.97,162.95,3.52]
[1752295082928,3.46,162.96,162.95,3.52]
[1752295084632,3.46,162.96,162.93,3.52]
[1752295085234,3.46,162.94,162.93,3.52]
[1752295085740,3.46,162.93,162.91,3.52]
[1752295086332,5.15645754,162.99,162.83,186.54739929]
[1752295086333,3.46,162.92,162.9,3.52]
[1752295086633,3.46,162.92,162.87,3.52]
[1752295087731,3.46,162.89,162.88,3.52]
[1752295090434,3.46,162.89,162.88,9.6567]
[1752295091535,3.46,162.89,162.88,3.52]
[1752295092534,3.46,162.95,162.84,3.79432334]
[1752295092736,179.82,162.95,162.87,3.52]
[1752295092934,3.46,162.94,162.87,3.52]
[1752295093134,6.1352,162.93,162.87,3.52]
[1752295093340,3.46,162.92,162.87,3.52]
[1752295093836,3.46,162.94,162.9,3.79432334]
[1752295094037,3.46,162.94,162.91,3.52]
[1752295094234,176.36,162.98,162.91,3.52]
[1752295094438,3.46,162.95,162.92,6.1351]
[1752295094734,3.46,162.97,162.93,3.39]
[1752295094944,3.46,162.97,162.94,3.39]
[1752295095133,3.45,162.95,162.94,3.39]
[1752295096140,9.5841,162.95,162.94,3.39]
[1752295096842,3.45,162.93,162.91,3.39]
[1752295097446,9.5851,162.93,162.91,3.39]
[1752295097640,3.45,162.92,162.91,3.39]
[1752295099646,3.45,162.92,162.91,9.5256]
[1752295101245,3.45,162.92,162.91,3.39]
[1752295101846,3.45,162.92,162.91,9.5256]
[1752295102146,3.45,162.93,162.92,3.39]
[1752295103744,9.5848,162.93,162.92,3.39]
[1752295104348,3.45,162.93,162.92,3.39]
[1752295108452,3.45,162.93,162.92,9.5252]
[1752295108653,176.34,162.97,162.88,3.79686053]
[1752295108859,3.45,162.96,162.89,3.39]
[1752295109158,3.45,162.96,162.93,6.1345]
[1752295109356,3.45,162.96,162.94,3.39]
[1752295110152,179.79,162.97,162.95,9.5241]
[1752295110363,176.34,162.97,162.96,3.39]
[1752295110954,179.79,162.97,162.96,3.39]
[1752295112159,185.9233,162.97,162.96,3.39]
[1752295112659,179.79,162.97,162.96,3.39]
[1752295112861,179.79,162.97,162.96,9.5237]
[1752295113057,176.34,162.97,162.96,3.39]
[1752295113256,179.79,162.97,162.96,3.39]
[1752295114061,3.45,162.96,162.87,3.39]
[1752295114262,3.45,162.96,162.9,3.39]
[1752295115163,3.45,162.94,162.93,3.39]
[1752295115753,9.5844,162.94,162.93,3.39]
[1752295116762,3.45,162.92,162.91,3.39]
[1752295117259,3.45,162.92,162.91,9.5256]
[1752295117459,6.1347,162.94,162.91,9.5256]
[1752295117660,3.45,162.95,162.92,3.39]
[1752295117856,176.34,162.97,162.94,3.39]
[1752295118056,3.45,162.96,162.94,3.39]
[1752295118558,3.45,162.96,162.94,6.1341]
[1752295118764,3.45,162.96,162.95,3.39]
[1752295119264,3.45,162.96,162.95,9.5241]
[1752295121771,176.34,162.97,162.96,3.39]
[1752295122565,179.79,162.97,162.96,3.39]
[1752295122771,179.79,162.97,162.92,3.39]
[1752295122970,3.45,162.96,162.92,3.39]
[1752295123172,3.45,162.96,162.94,3.39]
[1752295123372,9.5839,162.96,162.94,3.39]
[1752295123567,3.45,162.95,162.94,3.39]
[1752295124268,9.5841,162.95,162.94,3.39]
[1752295125473,3.45,162.95,162.94,3.39]
[1752295130475,9.5841,162.95,162.94,3.39]
[1752295130775,3.61,162.94,162.93,3.29]
[1752295131777,3.61,162.94,162.88,3.29]
[1752295132877,176.34,162.97,162.89,3.79589458]
[1752295133077,3.61,162.96,162.9,3.29]
[1752295133683,3.61,162.95,162.94,3.29]
[1752295137386,3.61,162.95,162.94,9.4244]
[1752295137574,3.61,162.95,162.94,3.29]
[1752295141285,3.61,162.96,162.92,3.29]
[1752295141682,3.61,162.96,162.89,3.79589458]
[1752295141882,6.1341,162.95,162.93,3.29]
[1752295142182,3.61,162.94,162.93,3.29]
[1752295142382,9.7444,162.94,162.93,3.29]
[1752295142575,3.61,162.94,162.93,3.29]
[1752295144288,3.61,162.94,162.9,3.29]
[1752295144474,3.61,162.92,162.9,3.29]
[1752295145085,3.61,162.91,162.9,9.4257]
[1752295145481,3.61,162.92,162.9,3.29]
[1752295147080,3.61,162.92,162.91,6.1354]
[1752295147390,3.61,162.92,162.91,9.4254]
[1752295148683,3.61,162.92,162.91,3.29]
[1752295149277,3.61,162.92,162.91,9.4256]
[1752295149985,3.61,162.96,162.93,3.29]
[1752295151088,6.1344,162.94,162.93,3.29]
[1752295151290,9.7444,162.94,162.93,3.29]
[1752295151590,6.1349,162.93,162.91,6.1354]
[1752295151787,9.7449,162.93,162.92,3.29]
[1752295159602,3.61,162.93,162.92,3.29]
[1752295161396,3.61,162.93,162.92,9.4252]
[1752295161598,3.34,162.94,162.92,6.1352]
[1752295161797,3.34,162.94,162.93,3.26]
[1752295166202,6.1342,162.95,162.93,3.26]
[1752295166403,3.34,162.94,162.93,3.26]
[1752295168406,9.4744,162.94,162.93,3.26]
[1752295171302,6.1349,162.93,162.92,3.26]
[1752295171499,9.4749,162.93,162.92,3.26]
[1752295175510,6.1356,162.91,162.88,2.43004577]
[1752295175712,6.1356,162.91,162.9,3.26]
[1752295176212,9.4756,162.91,162.9,3.26]
[1752295177423,3.34,162.89,162.86,3.26]
[1752295177620,3.34,162.89,162.86,5.69004577]
[1752295177813,3.34,162.89,162.87,3.26]
[1752295178419,3.34,162.89,162.88,3.26]
[1752295180020,3.34,162.89,162.88,9.3967]
[1752295181323,9.4757,162.91,162.88,6.1367]
[1752295181625,3.34,162.9,162.89,3.26]
[1752295184824,9.4759,162.9,162.89,3.26]
[1752295185419,3.26,162.89,162.88,3.29]
[1752295187624,9.3963,162.89,162.88,3.29]
[1752295187925,3.26,162.89,162.88,3.29]
[1752295189919,184.90644163,162.92,162.88,3.29]
[1752295190116,3.26,162.9,162.88,3.29]
[1752295190519,3.26,162.9,162.89,6.1361]
[1752295190724,3.26,162.9,162.89,9.4261]
[1752295191424,3.26,162.9,162.89,3.29]
[1752295192223,3.26,162.9,162.88,3.29]
[1752295192425,3.26,162.89,162.86,3.29]
[1752295192922,9.3965,162.89,162.86,9.4272]
[1752295193128,3.26,162.88,162.87,3.29]
[1752295195127,9.3967,162.88,162.87,3.29]
[1752295195833,6.1367,162.88,162.87,3.29]
[1752295196129,9.3967,162.88,162.87,3.29]
[1752295196631,3.26,162.88,162.87,3.29]
[1752295197328,9.3967,162.88,162.87,3.29]
[1752295197528,5.69114163,162.88,162.86,3.29]
[1752295197831,3.26,162.87,162.86,3.29]
[1752295198030,9.3972,162.87,162.86,3.29]
[1752295198226,3.26,162.87,162.82,3.29]
[1752295198436,3.26,162.85,162.82,3.29]
[1752295198928,3.26,162.85,162.84,3.29]
[1752295199229,3.26,162.85,162.84,9.4282]
[1752295200326,5.69114163,162.88,162.86,3.29]
[1752295200627,3.26,162.92,162.86,5.72114163]
[1752295200821,9.3962,162.9,162.88,3.29]
[1752295201024,3.26,162.89,162.88,3.29]
[1752295201631,9.3963,162.89,162.86,9.4273]
[1752295201825,3.26,162.88,162.86,9.4273]
[1752295202131,3.26,162.88,162.87,3.29]
[1752295202425,3.26,162.9,162.88,3.29]
[1752295203032,3.26,162.9,162.89,6.1363]
[1752295203232,3.26,162.92,162.86,3.29]
[1752295203929,6.1356,162.91,162.88,6.1365]
[1752295204234,3.26,162.9,162.89,3.29]
[1752295204433,9.3959,162.9,162.89,3.29]
[1752295204625,3.26,162.9,162.89,3.29]
[1752295206230,9.3959,162.9,162.89,3.29]
[1752295206429,3.26,162.9,162.89,3.29]
[1752295206628,6.135,162.93,162.89,3.29]
[1752295206931,3.26,162.91,162.89,3.29]
[1752295207131,3.26,162.91,162.89,9.4262]
[1752295207333,3.26,162.91,162.9,3.29]
[1752295208531,3.26,162.91,162.9,9.4259]
[1752295208826,6.135,162.93,162.9,9.4259]
[1752295209031,3.26,162.92,162.91,3.29]
[1752295210036,9.3952,162.92,162.91,3.29]
[1752295210237,6.1352,162.92,162.9,3.29]
[1752295210435,3.26,162.91,162.9,3.29]
[1752295210836,3.26,162.92,162.9,6.1359]
[1752295211041,3.26,162.92,162.91,3.29]
[1752295216342,9.4252,162.92,162.91,3.29]
[1752295220845,6.1356,162.91,162.89,3.3]
[1752295221144,3.29,162.9,162.89,3.3]
[1752295222245,3.29,162.91,162.89,3.3]
[1752295224442,9.425,162.93,162.9,3.3]
[1752295224745,6.135,162.93,162.9,3.3]
[1752295224944,3.29,162.92,162.9,3.3]
[1752295225546,3.29,162.91,162.9,3.3]
[1752295229751,3.29,162.91,162.9,9.4359]
[1752295231547,3.29,162.92,162.91,6.1355]
[1752295231741,3.29,162.92,162.88,2.43058727]
[1752295232050,3.29,162.91,162.89,9.436]
[1752295232251,3.29,162.92,162.89,3.3]
[1752295232948,3.29,162.92,162.9,6.1357]
[1752295233149,3.29,162.92,162.91,3.3]
[1752295233652,6.1352,162.92,162.91,3.3]
[1752295233855,9.4252,162.92,162.91,3.3]
[1752295234052,3.29,162.92,162.91,3.3]
[1752295235954,9.4252,162.92,162.91,3.3]
[1752295236553,6.1357,162.91,162.88,8.56718727]
[1752295236751,9.4257,162.91,162.9,3.3]
[1752295237353,3.29,162.91,162.9,3.3]
[1752295238455,9.4256,162.91,162.9,3.3]
[1752295245354,9.4256,162.91,162.89,0.03880687]
[1752295245355,9.3959,162.9,162.89,0.03880687]
[1752295246661,9.3959,162.9,162.89,3.43880687]
[1752295247361,9.3959,162.9,162.89,0.03880687]
[1752295248562,9.3959,162.9,162.89,3.43880687]
[1752295249464,3.26,162.91,162.89,3.43880687]
[1752295249963,3.26,162.91,162.9,3.4]
[1752295251167,3.26,162.91,162.9,9.5359]
[1752295251968,3.26,162.91,162.9,3.4]
[1752295252759,3.30225796,162.92,162.9,3.4]
[1752295253468,3.30225796,162.92,162.91,3.4]
[1752295254468,0.04225796,162.92,162.91,3.4]
[1752295255169,0.04225796,162.92,162.91,9.5356]
[1752295255361,3.30225796,162.92,162.91,9.5356]
[1752295256165,3.30225796,162.92,162.91,3.4]
[1752295266579,9.43745796,162.92,162.91,3.4]
[1752295267074,9.43745796,162.92,162.89,6.17490687]
[1752295267277,9.3956,162.91,162.9,3.4]
[1752295267572,3.26,162.9,162.89,0.03880687]
[1752295267777,3.26,162.9,162.89,3.43880687]
[1752295268573,9.3959,162.9,162.89,3.43880687]
[1752295271984,3.26,162.9,162.89,3.43880687]
[1752295272184,3.26,162.9,162.89,9.57510687]
[1752295272483,3.26,162.9,162.89,3.43880687]
[1752295275081,3.26,162.9,162.89,9.57510687]
[1752295275478,3.62225796,162.92,162.89,0.03880687]
[1752295275783,3.58,162.91,162.9,9.5159]
[1752295277881,0.04225796,162.92,162.91,6.1356]
[1752295278085,0.04225796,162.92,162.91,11.94659332]
[1752295278482,3.62225796,162.92,162.91,11.94659332]
[1752295279684,3.62225796,162.92,162.91,9.5156]
[1752295280287,3.62225796,162.92,162.91,3.38]
[1752295280690,9.75745796,162.92,162.91,3.38]
[1752295281280,6.1357,162.91,162.89,0.03880687]
[1752295281488,6.1357,162.91,162.89,3.41880687]
[1752295281690,2.43012283,162.91,162.89,0.03880687]
[1752295281885,3.58,162.9,162.87,3.38]
[1752295282079,3.58,162.88,162.87,3.38]
[1752295282789,3.58,162.88,162.86,6.1372]
[1752295282989,3.58,162.88,162.86,9.5172]
[1752295283188,3.58,162.87,162.86,9.5172]
[1752295283385,3.58,162.87,162.86,3.38]
[1752295284192,3.58,162.87,162.86,9.5174]
[1752295285194,3.58,162.87,162.86,3.38]
[1752295285788,9.7171,162.87,162.86,3.38]
[1752295286390,3.58,162.87,162.86,3.38]
[1752295287599,3.58,162.88,162.86,3.38]
[1752295287897,3.58,162.88,162.86,9.5171]
[1752295288098,3.58,162.88,162.87,3.38]
[1752295288699,3.58,162.88,162.87,9.5171]
[1752295289299,3.58,162.88,162.87,3.38]
[1752295289900,3.61984088,162.89,162.88,3.38]
[1752295290407,3.58,162.89,162.88,3.38]
[1752295290699,9.75587901,162.9,162.88,3.38]